[Event "Titled Tuesday Blitz December 20 Late 2022"]
[White "Przybylski, Wojciech"]
[Black "Tang, Andrew"]
[WhiteFideId "1117599"]
[BlackFideId "2059630"]
[WhiteElo "2217"]
[BlackElo "2582"]
[Result "0-1"]
[Round "03"]
[TimeControl "180+1"]
[Date "2022.12.21"]
[WhiteClock "0:00:16"]
[BlackClock "0:00:07"]

1. e4 {[%clk 0:03:00]}  b5 {[%clk 0:02:59]} 2. Nf3 {[%clk 0:02:58]}  Bb7 {[%clk 0:02:59]} 3. d3 {[%clk 0:02:57]}  g6 {[%clk 0:02:55]} 4. Be2 {[%clk 0:02:56]}  Bg7 {[%clk 0:02:55]} 5. O-O {[%clk 0:02:57]}  c5 {[%clk 0:02:48]} 6. a4 {[%clk 0:02:56]}  b4 {[%clk 0:02:47]} 7. Nbd2 {[%clk 0:02:56]}  d6 {[%clk 0:02:44]} 8. a5 {[%clk 0:02:55]}  Nf6 {[%clk 0:02:44]} 9. Nc4 {[%clk 0:02:54]}  O-O {[%clk 0:02:41]} 10. Bg5 {[%clk 0:02:52]}  h6 {[%clk 0:02:41]} 11. Bf4 {[%clk 0:02:53]}  Nc6 {[%clk 0:02:33]} 12. a6 {[%clk 0:02:51]}  Bc8 {[%clk 0:02:33]} 13. c3 {[%clk 0:02:51]}  bxc3 {[%clk 0:02:32]} 14. bxc3 {[%clk 0:02:51]}  d5 {[%clk 0:02:30]} 15. e5 {[%clk 0:02:38]}  Nh5 {[%clk 0:02:24]} 16. Be3 {[%clk 0:02:34]}  dxc4 {[%clk 0:02:18]} 17. d4 {[%clk 0:02:30]}  cxd4 {[%clk 0:02:13]} 18. cxd4 {[%clk 0:02:30]}  Be6 {[%clk 0:02:11]} 19. Qd2 {[%clk 0:02:16]}  Kh7 {[%clk 0:02:07]} 20. Rfd1 {[%clk 0:02:13]}  Qd5 {[%clk 0:01:59]} 21. Rac1 {[%clk 0:02:10]}  Na5 {[%clk 0:01:59]} 22. Qc3 {[%clk 0:01:55]}  Rac8 {[%clk 0:01:45]} 23. h3 {[%clk 0:01:53]}  f5 {[%clk 0:01:37]} 24. Rb1 {[%clk 0:01:36]}  Nb3 {[%clk 0:01:27]} 25. Nh2 {[%clk 0:01:28]}  f4 {[%clk 0:01:23]} 26. Bf3 {[%clk 0:01:28]}  Qa5 {[%clk 0:00:59]} 27. Rxb3 {[%clk 0:01:26]}  Qxc3 {[%clk 0:00:55]} 28. Rxc3 {[%clk 0:01:27]}  fxe3 {[%clk 0:00:55]} 29. fxe3 {[%clk 0:01:28]}  Ng3 {[%clk 0:00:54]} 30. e4 {[%clk 0:01:25]}  Rcd8 {[%clk 0:00:47]} 31. Re3 {[%clk 0:01:13]}  h5 {[%clk 0:00:37]} 32. h4 {[%clk 0:01:11]}  Bh6 {[%clk 0:00:33]} 33. Rc3 {[%clk 0:01:10]}  Rxf3 {[%clk 0:00:32]} 34. Rxf3 {[%clk 0:01:07]}  Ne2+ {[%clk 0:00:32]} 35. Kf2 {[%clk 0:01:04]}  Nxd4 {[%clk 0:00:32]} 36. Rc3 {[%clk 0:00:58]}  Rf8+ {[%clk 0:00:20]} 37. Nf3 {[%clk 0:00:58]}  Nb5 {[%clk 0:00:16]} 38. Rc2 {[%clk 0:00:44]}  c3 {[%clk 0:00:16]} 39. Ra1 {[%clk 0:00:44]}  Bb3 {[%clk 0:00:12]} 40. Re2 {[%clk 0:00:43]}  c2 {[%clk 0:00:12]} 41. Ree1 {[%clk 0:00:39]}  Nd4 {[%clk 0:00:08]} 42. e6 {[%clk 0:00:35]}  Nxf3 {[%clk 0:00:07]} 43. gxf3 {[%clk 0:00:36]}  Rc8 {[%clk 0:00:08]} 44. Rec1 {[%clk 0:00:34]}  Bxe6 {[%clk 0:00:07]} 45. Ke2 {[%clk 0:00:32]}  Rc3 {[%clk 0:00:07]} 46. e5 {[%clk 0:00:29]}  Bc4+ {[%clk 0:00:05]} 47. Kf2 {[%clk 0:00:29]}  Be3+ {[%clk 0:00:06]} 48. Kg3 {[%clk 0:00:29]}  Bxc1 {[%clk 0:00:06]} 49. Rxc1 {[%clk 0:00:28]}  Bb3 {[%clk 0:00:07]} 50. e6 {[%clk 0:00:16]}  Rd3 {[%clk 0:00:07]} 51. Kf4 {[%clk 0:00:15]}  Rd1 {[%clk 0:00:07]} 52. Kg5 {[%clk 0:00:15]}  Rxc1 {[%clk 0:00:07]} 53. f4 {[%clk 0:00:16]}  Rg1# {[%clk 0:00:07]} 0-1


[Site "https://www.chess.com"]

[Event "Titled Tuesday Blitz December 20 Late 2022"]
[White "Radovanovic, Dusan"]
[Black "Barria Zuniga, Daniel"]
[WhiteFideId "926868"]
[BlackFideId "3400816"]
[WhiteElo "2337"]
[BlackElo "2414"]
[Result "0-1"]
[Round "03"]
[TimeControl "180+1"]
[Date "2022.12.21"]
[WhiteClock "0:00:53"]
[BlackClock "0:01:13"]

1. e4 {[%clk 0:03:00]}  g6 {[%clk 0:02:55]} 2. d4 {[%clk 0:03:00]}  Bg7 {[%clk 0:02:56]} 3. Nc3 {[%clk 0:03:00]}  c5 {[%clk 0:02:56]} 4. dxc5 {[%clk 0:03:00]}  Bxc3+ {[%clk 0:02:56]} 5. bxc3 {[%clk 0:03:00]}  Nf6 {[%clk 0:02:56]} 6. Qd4 {[%clk 0:02:56]}  Nc6 {[%clk 0:02:56]} 7. Qa4 {[%clk 0:02:53]}  O-O {[%clk 0:02:56]} 8. Nf3 {[%clk 0:02:50]}  b6 {[%clk 0:02:55]} 9. Bd3 {[%clk 0:02:38]}  bxc5 {[%clk 0:02:55]} 10. O-O {[%clk 0:02:36]}  Qc7 {[%clk 0:02:52]} 11. Bg5 {[%clk 0:02:27]}  Nh5 {[%clk 0:02:42]} 12. g3 {[%clk 0:02:21]}  d6 {[%clk 0:02:40]} 13. Rab1 {[%clk 0:02:06]}  Bd7 {[%clk 0:02:39]} 14. Qa6 {[%clk 0:02:01]}  Rfb8 {[%clk 0:02:39]} 15. Bc4 {[%clk 0:01:46]}  Ng7 {[%clk 0:02:08]} 16. Rfe1 {[%clk 0:01:38]}  Bg4 {[%clk 0:01:46]} 17. Nd2 {[%clk 0:01:33]}  Be6 {[%clk 0:01:42]} 18. Bd5 {[%clk 0:01:31]}  Bd7 {[%clk 0:01:38]} 19. Bxc6 {[%clk 0:01:08]}  Bxc6 {[%clk 0:01:36]} 20. Bxe7 {[%clk 0:01:09]}  Rb6 {[%clk 0:01:14]} 21. Rxb6 {[%clk 0:01:07]}  axb6 {[%clk 0:01:14]} 22. Bxd6 {[%clk 0:00:53]}  Qxd6 {[%clk 0:01:15]} 23. Qxb6 {[%clk 0:00:53]}  Qxd2 {[%clk 0:01:13]} 0-1


[Site "https://www.chess.com"]

[Event "Titled Tuesday Blitz December 20 Late 2022"]
[White "Rasulov, Vugar"]
[Black "Cruz Mendez, Jean Marco"]
[WhiteFideId "13402390"]
[BlackFideId "3526402"]
[WhiteElo "2509"]
[BlackElo "2064"]
[Result "1-0"]
[Round "03"]
[TimeControl "180+1"]
[Date "2022.12.20"]
[WhiteClock "0:00:56"]
[BlackClock "0:00:16"]

1. c4 {[%clk 0:03:00]}  e5 {[%clk 0:02:53]} 2. Nc3 {[%clk 0:03:01]}  Nc6 {[%clk 0:02:53]} 3. g3 {[%clk 0:03:01]}  Bc5 {[%clk 0:02:53]} 4. Bg2 {[%clk 0:03:02]}  a6 {[%clk 0:02:54]} 5. Nf3 {[%clk 0:03:01]}  Ba7 {[%clk 0:02:53]} 6. O-O {[%clk 0:03:01]}  d6 {[%clk 0:02:53]} 7. d3 {[%clk 0:02:59]}  Nge7 {[%clk 0:02:53]} 8. Rb1 {[%clk 0:02:57]}  h6 {[%clk 0:02:47]} 9. b4 {[%clk 0:02:57]}  O-O {[%clk 0:02:47]} 10. a4 {[%clk 0:02:57]}  Be6 {[%clk 0:02:45]} 11. e3 {[%clk 0:02:49]}  Qd7 {[%clk 0:02:44]} 12. b5 {[%clk 0:02:48]}  axb5 {[%clk 0:02:45]} 13. axb5 {[%clk 0:02:48]}  Na5 {[%clk 0:02:45]} 14. Ba3 {[%clk 0:02:35]}  c5 {[%clk 0:02:28]} 15. bxc6 {[%clk 0:02:33]}  Naxc6 {[%clk 0:02:28]} 16. Ra1 {[%clk 0:02:20]}  Rfd8 {[%clk 0:02:24]} 17. Nb5 {[%clk 0:02:07]}  Bc5 {[%clk 0:02:21]} 18. Bb2 {[%clk 0:02:02]}  Rxa1 {[%clk 0:02:16]} 19. Qxa1 {[%clk 0:02:03]}  f6 {[%clk 0:02:15]} 20. Rc1 {[%clk 0:01:58]}  Bb6 {[%clk 0:01:58]} 21. d4 {[%clk 0:01:54]}  exd4 {[%clk 0:01:53]} 22. Nfxd4 {[%clk 0:01:49]}  Bf7 {[%clk 0:01:50]} 23. Ba3 {[%clk 0:01:41]}  d5 {[%clk 0:01:45]} 24. c5 {[%clk 0:01:37]}  Bc7 {[%clk 0:01:45]} 25. Nxc7 {[%clk 0:01:36]}  Qxc7 {[%clk 0:01:46]} 26. Nb5 {[%clk 0:01:35]}  Qd7 {[%clk 0:01:36]} 27. Nd6 {[%clk 0:01:36]}  Nc8 {[%clk 0:01:33]} 28. Qb2 {[%clk 0:01:30]}  Nxd6 {[%clk 0:01:06]} 29. cxd6 {[%clk 0:01:31]}  Rc8 {[%clk 0:01:00]} 30. h4 {[%clk 0:01:30]}  Ne5 {[%clk 0:00:58]} 31. Rxc8+ {[%clk 0:01:22]}  Qxc8 {[%clk 0:00:59]} 32. Qb6 {[%clk 0:01:16]}  Kh7 {[%clk 0:00:53]} 33. Bb2 {[%clk 0:01:07]}  Nc4 {[%clk 0:00:45]} 34. Qc7 {[%clk 0:01:08]}  Qf5 {[%clk 0:00:18]} 35. Qxf7 {[%clk 0:00:58]}  Nxb2 {[%clk 0:00:16]} 36. Qxd5 {[%clk 0:00:56]} 1-0


[Site "https://www.chess.com"]

[Event "Titled Tuesday Blitz December 20 Late 2022"]
[White "Renjith, Sravan"]
[Black "Kravtsiv, Martyn"]
[WhiteFideId "4306783"]
[BlackFideId "14113147"]
[WhiteElo "2072"]
[BlackElo "2695"]
[Result "1-0"]
[Round "03"]
[TimeControl "180+1"]
[Date "2022.12.20"]
[WhiteClock "0:00:11"]
[BlackClock "0:00:26"]

1. Nf3 {[%clk 0:02:58]}  d5 {[%clk 0:02:58]} 2. d4 {[%clk 0:02:58]}  Nf6 {[%clk 0:02:58]} 3. g3 {[%clk 0:02:57]}  c5 {[%clk 0:02:56]} 4. c3 {[%clk 0:02:57]}  e6 {[%clk 0:02:51]} 5. Bg2 {[%clk 0:02:56]}  Be7 {[%clk 0:02:52]} 6. O-O {[%clk 0:02:57]}  O-O {[%clk 0:02:52]} 7. Ne5 {[%clk 0:02:57]}  b6 {[%clk 0:02:51]} 8. Nd2 {[%clk 0:02:57]}  Bb7 {[%clk 0:02:51]} 9. Re1 {[%clk 0:02:48]}  Nc6 {[%clk 0:02:50]} 10. Nxc6 {[%clk 0:02:41]}  Bxc6 {[%clk 0:02:49]} 11. Nc4 {[%clk 0:02:35]}  Rc8 {[%clk 0:02:42]} 12. Ne5 {[%clk 0:02:35]}  Bb7 {[%clk 0:02:42]} 13. Bf4 {[%clk 0:02:31]}  Ne4 {[%clk 0:02:40]} 14. f3 {[%clk 0:02:29]}  Nd6 {[%clk 0:02:39]} 15. Be3 {[%clk 0:02:26]}  f6 {[%clk 0:02:35]} 16. Nd3 {[%clk 0:02:25]}  cxd4 {[%clk 0:02:26]} 17. cxd4 {[%clk 0:02:25]}  Qd7 {[%clk 0:02:25]} 18. Bf2 {[%clk 0:02:21]}  Ba6 {[%clk 0:02:22]} 19. e4 {[%clk 0:02:14]}  dxe4 {[%clk 0:02:16]} 20. fxe4 {[%clk 0:02:14]}  Nb5 {[%clk 0:02:10]} 21. Qa4 {[%clk 0:01:41]}  Bb7 {[%clk 0:02:09]} 22. Rad1 {[%clk 0:01:31]}  a6 {[%clk 0:02:07]} 23. d5 {[%clk 0:01:22]}  e5 {[%clk 0:02:02]} 24. Bxb6 {[%clk 0:01:20]}  Qg4 {[%clk 0:01:53]} 25. Nf2 {[%clk 0:01:17]}  Qh5 {[%clk 0:01:47]} 26. Bh3 {[%clk 0:01:01]}  Rb8 {[%clk 0:01:41]} 27. Qb3 {[%clk 0:00:53]}  Kh8 {[%clk 0:01:38]} 28. a4 {[%clk 0:00:52]}  Nd4 {[%clk 0:01:34]} 29. Bxd4 {[%clk 0:00:31]}  exd4 {[%clk 0:01:35]} 30. Rxd4 {[%clk 0:00:31]}  Bc5 {[%clk 0:01:34]} 31. Bg4 {[%clk 0:00:14]}  Qg5 {[%clk 0:01:29]} 32. h4 {[%clk 0:00:14]}  Qe5 {[%clk 0:01:18]} 33. Rd2 {[%clk 0:00:11]}  Bc8 {[%clk 0:01:10]} 34. Qf3 {[%clk 0:00:11]}  Bxg4 {[%clk 0:01:03]} 35. Qxg4 {[%clk 0:00:11]}  Rxb2 {[%clk 0:01:00]} 36. Rxb2 {[%clk 0:00:12]}  Qxb2 {[%clk 0:01:00]} 37. Qe2 {[%clk 0:00:13]}  Qb3 {[%clk 0:00:59]} 38. Kg2 {[%clk 0:00:12]}  Qxa4 {[%clk 0:01:00]} 39. Nd3 {[%clk 0:00:12]}  Bd6 {[%clk 0:01:00]} 40. Qf3 {[%clk 0:00:11]}  h6 {[%clk 0:00:59]} 41. Rf1 {[%clk 0:00:11]}  Qc2+ {[%clk 0:00:58]} 42. Rf2 {[%clk 0:00:11]}  Qc4 {[%clk 0:00:58]} 43. h5 {[%clk 0:00:10]}  Re8 {[%clk 0:00:58]} 44. Re2 {[%clk 0:00:10]}  a5 {[%clk 0:00:58]} 45. Nf2 {[%clk 0:00:10]}  a4 {[%clk 0:00:56]} 46. Ng4 {[%clk 0:00:10]}  Rf8 {[%clk 0:00:49]} 47. Rf2 {[%clk 0:00:08]}  a3 {[%clk 0:00:48]} 48. Ne3 {[%clk 0:00:09]}  Qd3 {[%clk 0:00:46]} 49. Nf5 {[%clk 0:00:09]}  Qxf3+ {[%clk 0:00:45]} 50. Kxf3 {[%clk 0:00:09]}  Bc5 {[%clk 0:00:45]} 51. Rc2 {[%clk 0:00:09]}  Ra8 {[%clk 0:00:43]} 52. Rxc5 {[%clk 0:00:09]}  a2 {[%clk 0:00:43]} 53. Rc1 {[%clk 0:00:10]}  a1=Q {[%clk 0:00:43]} 54. Rxa1 {[%clk 0:00:10]}  Rxa1 {[%clk 0:00:42]} 55. Kf4 {[%clk 0:00:09]}  Kg8 {[%clk 0:00:42]} 56. Ne7+ {[%clk 0:00:09]}  Kf7 {[%clk 0:00:42]} 57. Nf5 {[%clk 0:00:09]}  Ra6 {[%clk 0:00:41]} 58. Kg4 {[%clk 0:00:10]}  Ra7 {[%clk 0:00:41]} 59. Kf4 {[%clk 0:00:10]}  Ke8 {[%clk 0:00:41]} 60. Kg4 {[%clk 0:00:10]}  Rd7 {[%clk 0:00:40]} 61. Kf4 {[%clk 0:00:10]}  Kd8 {[%clk 0:00:41]} 62. Nd4 {[%clk 0:00:11]}  Ke7 {[%clk 0:00:39]} 63. Nf5+ {[%clk 0:00:10]}  Kd8 {[%clk 0:00:38]} 64. Nd4 {[%clk 0:00:10]}  Re7 {[%clk 0:00:31]} 65. Nc6+ {[%clk 0:00:10]}  Kd7 {[%clk 0:00:31]} 66. Nxe7 {[%clk 0:00:10]}  Kxe7 {[%clk 0:00:31]} 67. Kf5 {[%clk 0:00:11]}  Kf7 {[%clk 0:00:27]} 68. d6 {[%clk 0:00:11]}  Ke8 {[%clk 0:00:26]} 69. Ke6 {[%clk 0:00:11]}  Kd8 {[%clk 0:00:26]} 70. d7 {[%clk 0:00:11]} 1-0


[Site "https://www.chess.com"]

[Event "Titled Tuesday Blitz December 20 Late 2022"]
[White "Roman, Rodrigo"]
[Black "Joubert, Dantelle"]
[WhiteFideId "3701220"]
[BlackFideId "14310813"]
[WhiteElo "1995"]
[BlackElo "1507"]
[Result "1-0"]
[Round "03"]
[TimeControl "180+1"]
[Date "2022.12.21"]
[WhiteClock "0:00:30"]
[BlackClock "0:00:02"]

1. e4 {[%clk 0:03:00]}  e5 {[%clk 0:02:58]} 2. Nf3 {[%clk 0:02:45]}  Nc6 {[%clk 0:02:57]} 3. Bb5 {[%clk 0:02:44]}  Nf6 {[%clk 0:02:55]} 4. O-O {[%clk 0:02:44]}  Nxe4 {[%clk 0:02:54]} 5. d4 {[%clk 0:02:38]}  Nd6 {[%clk 0:02:52]} 6. dxe5 {[%clk 0:02:38]}  Nxb5 {[%clk 0:02:49]} 7. a4 {[%clk 0:02:39]}  Nbd4 {[%clk 0:02:45]} 8. Nxd4 {[%clk 0:02:38]}  Be7 {[%clk 0:02:44]} 9. Nc3 {[%clk 0:02:36]}  O-O {[%clk 0:02:43]} 10. Nd5 {[%clk 0:02:36]}  Bc5 {[%clk 0:02:37]} 11. Nb3 {[%clk 0:02:33]}  d6 {[%clk 0:02:16]} 12. Nxc5 {[%clk 0:02:32]}  dxc5 {[%clk 0:02:16]} 13. Be3 {[%clk 0:02:33]}  b6 {[%clk 0:02:01]} 14. f4 {[%clk 0:02:30]}  Nd4 {[%clk 0:01:48]} 15. Bxd4 {[%clk 0:02:19]}  cxd4 {[%clk 0:01:47]} 16. Nb4 {[%clk 0:02:07]}  Bb7 {[%clk 0:01:43]} 17. a5 {[%clk 0:01:16]}  c5 {[%clk 0:01:33]} 18. Nd3 {[%clk 0:01:16]}  Qd5 {[%clk 0:01:22]} 19. Qd2 {[%clk 0:01:16]}  b5 {[%clk 0:01:04]} 20. b3 {[%clk 0:01:14]}  a6 {[%clk 0:01:01]} 21. b4 {[%clk 0:01:14]}  c4 {[%clk 0:00:59]} 22. Nc5 {[%clk 0:01:14]}  Bc6 {[%clk 0:00:59]} 23. Rad1 {[%clk 0:01:14]}  Rfd8 {[%clk 0:00:47]} 24. Qf2 {[%clk 0:01:12]}  c3 {[%clk 0:00:37]} 25. Qf3 {[%clk 0:01:11]}  Qxf3 {[%clk 0:00:33]} 26. gxf3 {[%clk 0:01:10]}  Kf8 {[%clk 0:00:18]} 27. Kf2 {[%clk 0:01:10]}  Ke7 {[%clk 0:00:17]} 28. Rd3 {[%clk 0:01:10]}  Bd5 {[%clk 0:00:15]} 29. Rxd4 {[%clk 0:01:10]}  Bc4 {[%clk 0:00:14]} 30. Rfd1 {[%clk 0:01:10]}  Rxd4 {[%clk 0:00:09]} 31. Rxd4 {[%clk 0:01:11]}  Be6 {[%clk 0:00:07]} 32. Rd3 {[%clk 0:01:08]}  Bf5 {[%clk 0:00:05]} 33. Rxc3 {[%clk 0:00:54]}  Rd8 {[%clk 0:00:06]} 34. Ke2 {[%clk 0:00:44]}  Ra8 {[%clk 0:00:07]} 35. Ne4 {[%clk 0:00:42]}  Rd8 {[%clk 0:00:08]} 36. Rc7+ {[%clk 0:00:42]}  Rd7 {[%clk 0:00:06]} 37. Rxd7+ {[%clk 0:00:26]}  Kxd7 {[%clk 0:00:07]} 38. Nc5+ {[%clk 0:00:26]}  Kc6 {[%clk 0:00:07]} 39. Nxa6 {[%clk 0:00:27]}  Be6 {[%clk 0:00:04]} 40. Nc5 {[%clk 0:00:28]}  Bc4+ {[%clk 0:00:04]} 41. Ke3 {[%clk 0:00:29]}  f6 {[%clk 0:00:02]} 42. c3 {[%clk 0:00:30]} 1-0


[Site "https://www.chess.com"]

[Event "Titled Tuesday Blitz December 20 Late 2022"]
[White "Ronka, Erik"]
[Black "Liu, Kelsey"]
[WhiteFideId "505080"]
[BlackFideId "30944481"]
[WhiteElo "2264"]
[BlackElo "2302"]
[Result "1-0"]
[Round "03"]
[TimeControl "180+1"]
[Date "2022.12.21"]
[WhiteClock "0:02:10"]
[BlackClock "0:00:58"]

1. d4 {[%clk 0:03:00]}  Nf6 {[%clk 0:03:00]} 2. Nf3 {[%clk 0:03:01]}  e6 {[%clk 0:02:59]} 3. g3 {[%clk 0:03:01]}  b6 {[%clk 0:02:59]} 4. Bg2 {[%clk 0:03:02]}  Bb7 {[%clk 0:03:00]} 5. O-O {[%clk 0:03:02]}  Be7 {[%clk 0:03:00]} 6. c4 {[%clk 0:03:03]}  O-O {[%clk 0:03:01]} 7. Nc3 {[%clk 0:03:03]}  Ne4 {[%clk 0:03:01]} 8. Qc2 {[%clk 0:03:04]}  Nxc3 {[%clk 0:03:01]} 9. Qxc3 {[%clk 0:03:05]}  c5 {[%clk 0:03:01]} 10. Rd1 {[%clk 0:02:54]}  Bf6 {[%clk 0:03:00]} 11. b3 {[%clk 0:02:52]}  cxd4 {[%clk 0:02:55]} 12. Nxd4 {[%clk 0:02:52]}  Bxg2 {[%clk 0:02:56]} 13. Kxg2 {[%clk 0:02:52]}  Qc7 {[%clk 0:02:50]} 14. Bb2 {[%clk 0:02:51]}  Nc6 {[%clk 0:02:48]} 15. Qe3 {[%clk 0:02:46]}  Rfd8 {[%clk 0:01:50]} 16. Nb5 {[%clk 0:02:38]}  Qb8 {[%clk 0:01:34]} 17. Bxf6 {[%clk 0:02:35]}  gxf6 {[%clk 0:01:35]} 18. Nd6 {[%clk 0:02:34]}  Ne5 {[%clk 0:01:24]} 19. f4 {[%clk 0:02:20]}  Ng4 {[%clk 0:01:14]} 20. Qf3 {[%clk 0:02:18]}  f5 {[%clk 0:01:14]} 21. e4 {[%clk 0:02:16]}  Nh6 {[%clk 0:01:03]} 22. Qh5 {[%clk 0:02:11]}  Kg7 {[%clk 0:00:58]} 23. Qg5+ {[%clk 0:02:10]} 1-0


[Site "https://www.chess.com"]

[Event "Titled Tuesday Blitz December 20 Late 2022"]
[White "Rosenberg, Evan S"]
[Black "Smith, Garrett L"]
[WhiteFideId "2019299"]
[BlackFideId "2024829"]
[WhiteElo "2407"]
[BlackElo "2214"]
[Result "1/2-1/2"]
[Round "03"]
[TimeControl "180+1"]
[Date "2022.12.21"]
[WhiteClock "0:00:17"]
[BlackClock "0:00:17"]

1. d4 {[%clk 0:03:00]}  Nf6 {[%clk 0:02:59]} 2. Nf3 {[%clk 0:03:00]}  g6 {[%clk 0:02:59]} 3. Nc3 {[%clk 0:03:00]}  d5 {[%clk 0:02:57]} 4. Bf4 {[%clk 0:03:00]}  Bg7 {[%clk 0:02:56]} 5. Nb5 {[%clk 0:02:59]}  Na6 {[%clk 0:02:56]} 6. e3 {[%clk 0:02:57]}  O-O {[%clk 0:02:51]} 7. h3 {[%clk 0:02:57]}  c6 {[%clk 0:02:50]} 8. Nc3 {[%clk 0:02:57]}  Bf5 {[%clk 0:02:42]} 9. Bxa6 {[%clk 0:02:51]}  bxa6 {[%clk 0:02:43]} 10. Ne5 {[%clk 0:02:50]}  Qc8 {[%clk 0:02:33]} 11. Na4 {[%clk 0:02:48]}  Nd7 {[%clk 0:02:27]} 12. Nxd7 {[%clk 0:02:46]}  Bxd7 {[%clk 0:02:23]} 13. Nc5 {[%clk 0:02:47]}  Re8 {[%clk 0:02:18]} 14. c3 {[%clk 0:02:33]}  a5 {[%clk 0:02:12]} 15. Qa4 {[%clk 0:02:29]}  e5 {[%clk 0:02:01]} 16. dxe5 {[%clk 0:02:25]}  Bxe5 {[%clk 0:02:02]} 17. Bxe5 {[%clk 0:02:25]}  Rxe5 {[%clk 0:02:02]} 18. Qd4 {[%clk 0:02:22]}  Re8 {[%clk 0:01:57]} 19. O-O {[%clk 0:02:15]}  Rb8 {[%clk 0:01:56]} 20. b3 {[%clk 0:02:13]}  h5 {[%clk 0:01:50]} 21. Rad1 {[%clk 0:02:09]}  Rb5 {[%clk 0:01:44]} 22. e4 {[%clk 0:02:06]}  Rxc5 {[%clk 0:01:13]} 23. Qxc5 {[%clk 0:02:06]}  Rxe4 {[%clk 0:00:47]} 24. Rfe1 {[%clk 0:02:02]}  Rh4 {[%clk 0:00:42]} 25. Qe7 {[%clk 0:01:56]}  Rf4 {[%clk 0:00:36]} 26. Re3 {[%clk 0:01:49]}  Be6 {[%clk 0:00:31]} 27. c4 {[%clk 0:01:41]}  Kg7 {[%clk 0:00:27]} 28. cxd5 {[%clk 0:01:27]}  cxd5 {[%clk 0:00:27]} 29. Rdd3 {[%clk 0:01:13]}  Qc1+ {[%clk 0:00:19]} 30. Kh2 {[%clk 0:01:13]}  Rf6 {[%clk 0:00:17]} 31. Rf3 {[%clk 0:01:11]}  Rxf3 {[%clk 0:00:15]} 32. Rxf3 {[%clk 0:01:11]}  Qb2 {[%clk 0:00:13]} 33. a4 {[%clk 0:01:08]}  Kg8 {[%clk 0:00:12]} 34. Qf6 {[%clk 0:01:07]}  Qxf6 {[%clk 0:00:11]} 35. Rxf6 {[%clk 0:01:07]}  Kf8 {[%clk 0:00:11]} 36. Rf3 {[%clk 0:01:05]}  Ke7 {[%clk 0:00:11]} 37. Rc3 {[%clk 0:01:05]}  Kd6 {[%clk 0:00:11]} 38. Kg3 {[%clk 0:01:06]}  d4 {[%clk 0:00:12]} 39. Rc1 {[%clk 0:01:04]}  Bxb3 {[%clk 0:00:12]} 40. Kf4 {[%clk 0:00:56]}  Bd5 {[%clk 0:00:11]} 41. g3 {[%clk 0:00:56]}  Bc6 {[%clk 0:00:11]} 42. h4 {[%clk 0:00:38]}  Kd5 {[%clk 0:00:11]} 43. Re1 {[%clk 0:00:35]}  f6 {[%clk 0:00:08]} 44. Re7 {[%clk 0:00:28]}  Bxa4 {[%clk 0:00:08]} 45. Rxa7 {[%clk 0:00:28]}  Bc2 {[%clk 0:00:08]} 46. Rxa5+ {[%clk 0:00:29]}  Kc4 {[%clk 0:00:09]} 47. Ra6 {[%clk 0:00:19]}  Kd3 {[%clk 0:00:09]} 48. Rxf6 {[%clk 0:00:18]}  Ke2 {[%clk 0:00:10]} 49. Rd6 {[%clk 0:00:14]}  d3 {[%clk 0:00:09]} 50. f3 {[%clk 0:00:13]}  d2 {[%clk 0:00:09]} 51. Rxd2+ {[%clk 0:00:14]}  Kxd2 {[%clk 0:00:10]} 52. g4 {[%clk 0:00:13]}  Kc3 {[%clk 0:00:08]} 53. gxh5 {[%clk 0:00:12]}  gxh5 {[%clk 0:00:09]} 54. Kg5 {[%clk 0:00:13]}  Kd4 {[%clk 0:00:09]} 55. Kxh5 {[%clk 0:00:13]}  Ke5 {[%clk 0:00:10]} 56. Kg5 {[%clk 0:00:13]}  Ke6 {[%clk 0:00:10]} 57. f4 {[%clk 0:00:14]}  Kf7 {[%clk 0:00:10]} 58. f5 {[%clk 0:00:14]}  Bxf5 {[%clk 0:00:10]} 59. Kxf5 {[%clk 0:00:14]}  Kg8 {[%clk 0:00:11]} 60. Kg5 {[%clk 0:00:15]}  Kh8 {[%clk 0:00:12]} 61. Kg6 {[%clk 0:00:15]}  Kg8 {[%clk 0:00:13]} 62. h5 {[%clk 0:00:15]}  Kh8 {[%clk 0:00:13]} 63. h6 {[%clk 0:00:15]}  Kg8 {[%clk 0:00:14]} 64. Kg5 {[%clk 0:00:15]}  Kh8 {[%clk 0:00:15]} 65. Kg6 {[%clk 0:00:15]}  Kg8 {[%clk 0:00:16]} 66. h7+ {[%clk 0:00:16]}  Kh8 {[%clk 0:00:17]} 67. Kh6 {[%clk 0:00:17]} 1/2-1/2


[Site "https://www.chess.com"]

[Event "Titled Tuesday Blitz December 20 Late 2022"]
[White "Savanovic, Aleksandar"]
[Black "Eljanov, Pavel"]
[WhiteFideId "914932"]
[BlackFideId "14102951"]
[WhiteElo "2409"]
[BlackElo "2598"]
[Result "0-1"]
[Round "03"]
[TimeControl "180+1"]
[Date "2022.12.21"]
[WhiteClock "0:00:04"]
[BlackClock "0:00:21"]

1. d4 {[%clk 0:03:00]}  Nf6 {[%clk 0:02:58]} 2. Bf4 {[%clk 0:02:59]}  d5 {[%clk 0:02:54]} 3. e3 {[%clk 0:03:00]}  c5 {[%clk 0:02:54]} 4. c3 {[%clk 0:03:00]}  Qb6 {[%clk 0:02:54]} 5. Na3 {[%clk 0:02:45]}  a6 {[%clk 0:02:43]} 6. Qb3 {[%clk 0:02:44]}  Qa5 {[%clk 0:02:32]} 7. Nf3 {[%clk 0:02:29]}  Nc6 {[%clk 0:02:31]} 8. Be2 {[%clk 0:02:25]}  c4 {[%clk 0:02:27]} 9. Qc2 {[%clk 0:02:24]}  g6 {[%clk 0:02:23]} 10. O-O {[%clk 0:02:24]}  Bf5 {[%clk 0:02:22]} 11. Qc1 {[%clk 0:02:21]}  Nh5 {[%clk 0:02:11]} 12. Be5 {[%clk 0:02:17]}  f6 {[%clk 0:02:10]} 13. Bg3 {[%clk 0:02:15]}  Nxg3 {[%clk 0:02:09]} 14. hxg3 {[%clk 0:02:16]}  e5 {[%clk 0:02:08]} 15. dxe5 {[%clk 0:02:03]}  Bxa3 {[%clk 0:02:01]} 16. bxa3 {[%clk 0:02:01]}  fxe5 {[%clk 0:02:02]} 17. Rd1 {[%clk 0:01:56]}  O-O {[%clk 0:01:40]} 18. Qd2 {[%clk 0:01:19]}  Rad8 {[%clk 0:01:37]} 19. Qb2 {[%clk 0:01:17]}  Rd7 {[%clk 0:01:31]} 20. Nh4 {[%clk 0:01:10]}  Be6 {[%clk 0:01:26]} 21. Nf3 {[%clk 0:01:08]}  Kg7 {[%clk 0:01:22]} 22. Ng5 {[%clk 0:01:04]}  Bg8 {[%clk 0:01:22]} 23. Rab1 {[%clk 0:00:56]}  Qc5 {[%clk 0:01:09]} 24. Nf3 {[%clk 0:00:50]}  Rf6 {[%clk 0:00:49]} 25. Rd2 {[%clk 0:00:48]}  h6 {[%clk 0:00:42]} 26. Rbd1 {[%clk 0:00:46]}  Rfd6 {[%clk 0:00:35]} 27. Bf1 {[%clk 0:00:37]}  b5 {[%clk 0:00:35]} 28. Be2 {[%clk 0:00:36]}  Be6 {[%clk 0:00:33]} 29. Bf1 {[%clk 0:00:34]}  a5 {[%clk 0:00:34]} 30. Be2 {[%clk 0:00:34]}  Rb7 {[%clk 0:00:33]} 31. Qc2 {[%clk 0:00:31]}  Bf5 {[%clk 0:00:32]} 32. Qc1 {[%clk 0:00:26]}  g5 {[%clk 0:00:32]} 33. Nh2 {[%clk 0:00:26]}  b4 {[%clk 0:00:30]} 34. axb4 {[%clk 0:00:26]}  axb4 {[%clk 0:00:31]} 35. cxb4 {[%clk 0:00:19]}  Rxb4 {[%clk 0:00:30]} 36. Nf3 {[%clk 0:00:13]}  c3 {[%clk 0:00:29]} 37. Rc2 {[%clk 0:00:12]}  Bxc2 {[%clk 0:00:28]} 38. Qxc2 {[%clk 0:00:13]}  e4 {[%clk 0:00:28]} 39. Ne1 {[%clk 0:00:07]}  d4 {[%clk 0:00:21]} 40. Qxe4 {[%clk 0:00:04]}  dxe3 {[%clk 0:00:22]} 41. Qxe3 {[%clk 0:00:02]}  Qxe3 {[%clk 0:00:21]} 42. fxe3 {[%clk 0:00:03]}  Rxd1 {[%clk 0:00:21]} 43. Bxd1 {[%clk 0:00:04]}  Rb1 {[%clk 0:00:21]} 44. Bc2 {[%clk 0:00:02]}  Rxe1+ {[%clk 0:00:21]} 45. Kf2 {[%clk 0:00:03]}  Rc1 {[%clk 0:00:21]} 46. Be4 {[%clk 0:00:04]} 0-1


[Site "https://www.chess.com"]